lending/lending_fUSD_20240504
["ID","MTS","AMOUNT","RATE_DAILY","PERIOD"]
[325394742,1714809268867,-500.0,0.00041643,32]
[325394743,1714809268890,-822.03,0.00041643,32]
[325394744,1714809268912,-612.33,0.00041643,32]
[325394745,1714809268935,-500.0,0.00041643,32]
[325394746,1714809268959,-556.55,0.00041643,32]
[325394747,1714809268982,-1239.56,0.00041643,32]
[325394748,1714809269005,-749.06,0.00041643,32]
[325394749,1714809269028,-524.82,0.00041643,32]
[325394750,1714809269056,-514.23,0.00041643,32]
[325394751,1714809269079,-500.0,0.00041643,32]
[325394752,1714809269223,-500.0,0.00041643,32]
[325394753,1714809269246,-1073.03,0.00041643,32]
[325394754,1714809269270,-2301.47,0.00041643,32]
[325394755,1714809269293,-857.07,0.00041643,32]
[325394756,1714809269316,-500.0,0.00041643,32]
[325394757,1714809269339,-1094.25,0.00041643,32]
[325394758,1714809269362,-229.13501391,0.00041643,32]
[325394759,1714809269386,-500.0,0.00041643,32]
[325394760,1714809269408,-500.0,0.00041643,32]
[325394761,1714809269431,-500.0,0.00041643,32]
[325394762,1714809269455,-555.0,0.00041643,32]
[325394763,1714809269479,-1308.27,0.00041643,32]
[325394764,1714809269502,-514.25,0.00041643,32]
[325394765,1714809269525,-515.4,0.00041643,32]
[325394766,1714809269548,-977.85,0.00041643,32]
[325394767,1714809269571,-1247.06,0.00041643,32]
[325394768,1714809269595,-500.0,0.00041643,32]
[325394769,1714809269619,-500.0,0.00041643,32]
[325394770,1714809269644,-950.29,0.00041643,32]
[325394771,1714809269668,-548.51,0.00041643,32]
[325394772,1714809269691,-838.25,0.00041643,32]
[325394773,1714809269715,-500.0,0.00041643,32]
[325394774,1714809269739,-700.9,0.00041643,32]
[325394775,1714809269762,-467.19118882,0.00041643,32]
[325394776,1714809269787,-534.54,0.00041643,32]
[325394777,1714809269810,-602.33,0.00041643,32]
[325394778,1714809269833,-500.0,0.00041643,32]
[325394779,1714809269857,-500.0,0.00041643,32]
[325394780,1714809269882,-500.0,0.00041643,32]
[325394781,1714809269906,-618.6,0.00041643,32]
[325394782,1714809269929,-500.0,0.00041643,32]
[325394783,1714809269954,-1137.07,0.00041643,32]
[325394784,1714809269978,-1471.39,0.00041643,32]
[325394785,1714809270002,-862.17,0.00041643,32]
[325394786,1714809270026,-664.94,0.00041643,32]
[325394787,1714809270051,-719.45,0.00041643,32]
[325394788,1714809270075,-532.73,0.00041643,32]
[325394789,1714809270099,-500.0,0.00041643,32]
[325394790,1714809270126,-927.2,0.00041643,32]
[325394791,1714809270150,-527.57850998,0.00041643,32]
[325394792,1714809270173,-1111.34,0.00041643,32]
[325394793,1714809270196,-500.0,0.00041643,32]
[325394794,1714809270220,-500.0,0.00041643,32]
[325394795,1714809270244,-500.0,0.00041643,32]
[325394796,1714809270267,-500.0,0.00041643,32]
[325394797,1714809270294,-772.15,0.00041643,32]
[325394798,1714809270317,-1066.54,0.00041643,32]
[325394799,1714809270340,-556.95,0.00041643,32]
[325394800,1714809270365,-500.0,0.00041643,32]
[325394801,1714809270389,-500.0,0.00041643,32]
[325394802,1714809270413,-500.0,0.00041643,32]
[325394803,1714809270437,-500.0,0.00041643,32]
[325394804,1714809270461,-500.0,0.00041643,32]
[325394805,1714809270485,-632.3923632,0.00041643,32]
[325394806,1714809270509,-1152.3,0.00041643,32]
[325394807,1714809270533,-1199.37,0.00041643,32]
[325394808,1714809270556,-547.89,0.00041643,32]
[325394809,1714809270579,-594.48,0.00041643,32]
[325394810,1714809270603,-500.0,0.00041643,32]
[325394811,1714809270626,-500.0,0.00041643,32]
[325394812,1714809270650,-991.78,0.00041643,32]
[325394813,1714809270674,-1060.19,0.00041643,32]
[325394814,1714809270704,-729.66,0.00041643,32]
[325394815,1714809270728,-500.0,0.00041643,32]
[325394816,1714809270752,-1193.92,0.00041643,32]
[325394817,1714809270778,-500.0,0.00041643,32]
[325394818,1714809270802,-567.81245908,0.00041643,32]
[325394819,1714809270825,-500.0,0.00041643,32]
[325394820,1714809270848,-500.0,0.00041643,32]
[325394821,1714809270871,-848.1,0.00041643,32]
[325394822,1714809270895,-500.0,0.00041643,32]
[325394823,1714809270919,-1627.08,0.00041643,32]
[325394824,1714809270941,-500.0,0.00041643,32]
[325394825,1714809270966,-1061.1,0.00041643,32]
[325394826,1714809270990,-500.0,0.00041643,32]
[325394827,1714809271013,-500.0,0.00041643,32]
[325394828,1714809271040,-941.09,0.00041643,32]
[325394829,1714809271063,-500.0,0.00041643,32]
[325394830,1714809271087,-500.0,0.00041643,32]
[325394831,1714809271110,-590.57,0.00041643,32]
[325394832,1714809271136,-500.0,0.00041643,32]
[325394833,1714809271159,-700.82,0.00041643,32]
[325394834,1714809271182,-879.96,0.00041643,32]
[325394835,1714809271206,-909.62,0.00041643,32]
[325394836,1714809271231,-500.0,0.00041643,32]
[325394837,1714809271256,-960.65,0.00041643,32]
[325394838,1714809271280,-500.0,0.00041643,32]
[325394839,1714809271303,-500.0,0.00041643,32]
[325394840,1714809271328,-500.0,0.00041643,32]
[325394841,1714809271628,-1669.39,0.00041643,32]
[325394842,1714809271654,-804.14,0.00041643,32]
[325394843,1714809271679,-645.37,0.00041643,32]
[325394844,1714809271703,-500.0,0.00041643,32]
[325394845,1714809271727,-500.0,0.00041643,32]
[325394846,1714809271752,-1056.36,0.00041643,32]
[325394847,1714809271785,-1101.07,0.00041643,32]
[325394848,1714809271810,-832.22,0.00041643,32]
[325394849,1714809271838,-898.2,0.00041643,32]
[325394850,1714809271863,-1782.43,0.00041643,32]
[325394851,1714809271886,-500.0,0.00041643,32]
[325394852,1714809271910,-500.0,0.00041643,32]
[325394853,1714809271933,-500.0,0.00041643,32]
[325394854,1714809271958,-833.46,0.00041643,32]
[325394855,1714809271982,-1378.24,0.00041643,32]
[325394856,1714809272007,-801.77,0.00041643,32]
[325394857,1714809272031,-500.0,0.00041643,32]
[325394858,1714809272059,-500.0,0.00041643,32]
[325394859,1714809272083,-954.07,0.00041643,32]
[325394860,1714809272107,-500.0,0.00041643,32]
[325394861,1714809272132,-572.14,0.00041643,32]
[325394862,1714809272159,-738.36,0.00041643,32]
[325394863,1714809272183,-651.16,0.00041643,32]
[325394864,1714809272213,-920.65,0.00041643,32]
[325394865,1714809272238,-500.0,0.00041643,32]
[325394866,1714809272263,-1048.07,0.00041643,32]
[325394867,1714809272287,-997.78,0.00041643,32]
[325394868,1714809272310,-500.0,0.00041643,32]
[325394869,1714809272335,-1007.74,0.00041643,32]
[325394870,1714809272359,-1217.37,0.00041643,32]
[325394871,1714809272383,-500.0,0.00041643,32]
[325394872,1714809272407,-586.47,0.00041643,32]
[325394873,1714809272431,-890.98,0.00041643,32]
[325394874,1714809272456,-500.0,0.00041643,32]
[325394875,1714809272481,-500.0,0.00041643,32]
[325394876,1714809272505,-500.0,0.00041643,32]
[325394877,1714809272530,-710.03,0.00041643,32]
[325394878,1714809272553,-2175.43,0.00041643,32]
[325394879,1714809272577,-544.48,0.00041643,32]
[325394880,1714809272600,-811.28,0.00041643,32]
[325394881,1714809272624,-500.0,0.00041643,32]
[325394882,1714809272648,-833.53,0.00041643,32]
[325394883,1714809272671,-500.0,0.00041643,32]
[325394884,1714809272695,-505.093337,0.00041643,32]
[325394885,1714809272721,-1807.07,0.00041643,32]
[325394886,1714809272744,-2000.0,0.00041643,120]
[325394887,1714809272768,-925.22,0.00041643,32]
[325394888,1714809272794,-500.0,0.00041643,32]
[325394889,1714809272819,-526.64,0.00041643,32]
[325394890,1714809272843,-500.0,0.00041643,32]
[325394891,1714809272866,-877.96,0.00041643,32]
[325394892,1714809272890,-1652.9,0.00041643,32]
[325394893,1714809272914,-681.48,0.00041643,32]
[325394894,1714809272938,-2140.17,0.00041643,32]
[325394895,1714809272962,-509.11,0.00041643,32]
[325394896,1714809272986,-500.0,0.00041643,32]
[325394897,1714809273009,-500.0,0.00041643,32]
[325394898,1714809273035,-758.51,0.00041643,32]
[325394899,1714809273062,-976.01,0.00041643,32]
[325394900,1714809273087,-500.0,0.00041643,32]
[325394901,1714809273111,-923.94,0.00041643,32]
[325394902,1714809273137,-500.0,0.00041643,32]
[325394903,1714809273161,-500.0,0.00041643,32]
[325394904,1714809273186,-1437.5,0.00041643,32]
[325394905,1714809273211,-991.12,0.00041643,32]
[325394906,1714809273238,-871.8,0.00041643,32]
[325394907,1714809273262,-500.0,0.00041643,32]
[325394908,1714809273286,-459.12538414,0.00041643,32]
[325394909,1714809273311,-592.15171995,0.00041643,32]
[325394910,1714809273335,-1243.15,0.00041643,32]
[325394911,1714809273360,-546.63,0.00041643,32]
[325394912,1714809273385,-500.0,0.00041643,32]
[325394913,1714809273480,-1346.94,0.00041643,32]
[325394914,1714809273504,-1012.85,0.00041643,32]
[325394915,1714809273527,-1073.74,0.00041643,32]
[325394916,1714809273551,-500.0,0.00041643,32]
[325394917,1714809273574,-611.49,0.00041643,32]
[325394918,1714809273597,-500.0,0.00041643,32]
[325394919,1714809273621,-857.54,0.00041643,32]
[325394920,1714809273644,-512.81500159,0.00041643,32]
[325394921,1714809273668,-500.0,0.00041643,32]
[325394922,1714809273692,-1534.91,0.00041643,32]
[325394923,1714809273717,-1091.2,0.00041643,32]
[325394924,1714809273742,-643.24,0.00041643,32]
[325394925,1714809273767,-692.78,0.00041643,32]
[325394926,1714809273792,-500.0,0.00041643,32]
[325394927,1714809273818,-552.62,0.00041643,32]
[325394928,1714809273842,-1392.08,0.00041643,32]
[325394929,1714809273865,-199.52777525,0.00041643,32]
[325394930,1714809273889,-1007.83,0.00041643,32]
[325394931,1714809273913,-500.0,0.00041643,32]
[325394932,1714809273937,-1425.4,0.00041643,32]
[325394933,1714809273960,-832.57,0.00041643,32]
[325394934,1714809273983,-500.0,0.00041643,32]
[325394935,1714809274007,-845.58,0.00041643,32]
[325394936,1714809274031,-2124.53,0.00041643,32]
[325394937,1714809274059,-1076.87,0.00041643,32]
[325394938,1714809274084,-1126.21,0.00041643,32]
[325394939,1714809274106,-500.0,0.00041643,32]
[325394940,1714809274133,-1027.72,0.00041643,32]
[325394941,1714809274158,-552.83,0.00041643,32]
[325394942,1714809274181,-500.0,0.00041643,32]
[325394943,1714809274207,-2255.29,0.00041643,32]
[325394944,1714809274231,-500.0,0.00041643,32]
[325394945,1714809274255,-500.0,0.00041643,32]
[325394946,1714809274279,-1271.41,0.00041643,32]
[325394947,1714809274304,-1240.79,0.00041643,32]
[325394948,1714809274329,-500.0,0.00041643,32]
[325394949,1714809274355,-1834.43,0.00041643,32]
[325394950,1714809274379,-1545.04,0.00041643,32]
[325394951,1714809274403,-685.92,0.00041643,32]
[325394952,1714809274426,-500.0,0.00041643,32]
[325394953,1714809274450,-500.0,0.00041643,32]
[325394954,1714809274475,-500.0,0.00041643,32]
[325394955,1714809274499,-500.0,0.00041643,32]
[325394956,1714809274523,-724.05,0.00041643,32]
[325394957,1714809274546,-500.0,0.00041643,32]
[325394958,1714809274570,-500.0,0.00041643,32]
[325394959,1714809274594,-1411.88,0.00041643,32]
[325394960,1714809274620,-1360.89,0.00041643,32]
[325394961,1714809274644,-806.67,0.00041643,32]
[325394962,1714809274667,-552.97,0.00041643,32]
[325394963,1714809274691,-500.0,0.00041643,32]
[325394964,1714809274716,-1540.75,0.00041643,32]
[325394965,1714809274740,-500.0,0.00041643,32]
[325394966,1714809274764,-1162.95,0.00041643,32]
[325394967,1714809274788,-500.0,0.00041643,32]
[325394968,1714809274813,-500.0,0.00041643,32]
[325394969,1714809274837,-500.0,0.00041643,32]
[325394970,1714809274860,-500.0,0.00041643,32]
[325394971,1714809274883,-768.79,0.00041643,32]
[325394972,1714809274907,-500.0,0.00041643,32]
[325394973,1714809274930,-500.37896789,0.00041643,32]
[325394974,1714809274953,-500.0,0.00041643,32]
[325394975,1714809274977,-1389.94,0.00041643,32]
[325394976,1714809275001,-1258.68,0.00041643,32]
[325394977,1714809275028,-831.46,0.00041643,32]
[325394978,1714809275055,-564.34,0.00041643,32]
[325394979,1714809275079,-2439.3,0.00041643,32]
[325394980,1714809275103,-482.89398983,0.00041643,32]
[325394981,1714809275127,-176.28439684,0.00041643,32]
[325394982,1714809275151,-500.0,0.00041643,32]
[325394983,1714809275175,-751.74,0.00041643,32]
[325394984,1714809275199,-880.53,0.00041643,32]
[325394985,1714809275225,-871.38,0.00041643,32]
[325394986,1714809275248,-1021.9,0.00041643,32]
[325394987,1714809275273,-500.0,0.00041643,32]
[325394988,1714809275298,-961.61,0.00041643,32]
[325394989,1714809275322,-500.0,0.00041643,32]
[325394990,1714809275347,-2080.99,0.00041643,32]
[325394991,1714809275371,-710.89,0.00041643,32]
[325394992,1714809275394,-731.43,0.00041643,32]
[325394993,1714809275418,-500.0,0.00041643,32]
[325394994,1714809275443,-956.4,0.00041643,32]
[325394995,1714809275468,-1043.98,0.00041643,32]
[325394996,1714809275492,-500.0,0.00041643,32]
[325394997,1714809275518,-500.0,0.00041643,32]
[325394998,1714809275542,-1407.73,0.00041643,32]
[325394999,1714809275567,-500.0,0.00041643,32]
[325395000,1714809275592,-500.0,0.00041643,32]
[325395001,1714809275616,-500.0,0.00041643,32]
[325395002,1714809275639,-165.81,0.00041643,32]
[325395003,1714809275664,-1362.04,0.00041643,32]
[325395004,1714809275689,-500.0,0.00041643,32]
[325395005,1714809275712,-871.13,0.00041643,32]
[325395006,1714809275736,-567.77,0.00041643,32]
[325395007,1714809275760,-500.0,0.00041643,32]
[325395008,1714809275788,-500.0,0.00041643,32]
[325395009,1714809275813,-704.4,0.00041643,32]
[325395010,1714809275839,-606.39,0.00041643,32]
[325395011,1714809275863,-853.2,0.00041643,32]
[325395012,1714809275886,-572.43,0.00041643,32]
[325395013,1714809275910,-500.0,0.00041643,32]
[325395014,1714809275932,-1497.37,0.00041643,32]
[325395015,1714809275957,-500.0,0.00041643,32]
[325395016,1714809275980,-885.59,0.00041643,32]
[325395017,1714809276004,-3897.64,0.00041643,32]
[325395018,1714809276150,-5858.38,0.00041643,32]
[325395019,1714809276176,-694.68,0.00041643,32]
[325395020,1714809276200,-649.68,0.00041643,32]
[325395021,1714809276225,-500.0,0.00041643,32]
[325395022,1714809276250,-852.85,0.00041643,32]
[325395023,1714809276276,-1754.55,0.00041643,32]
[325395024,1714809276300,-829.24,0.00041643,32]
[325395025,1714809276324,-1971.87,0.00041643,32]
[325395026,1714809276348,-1051.62,0.00041643,32]
[325395027,1714809276373,-38747.74,0.00041643,32]
[325395028,1714809276397,-2910.03,0.00041643,32]
[325395029,1714809276422,-5122.94,0.00041643,32]
[325395030,1714809276446,-500.0,0.00041643,32]
[325395031,1714809276473,-500.0,0.00041643,32]
[325395032,1714809276498,-589.93,0.00041643,32]
[325395033,1714809276523,-529.01,0.00041643,32]
[325395034,1714809276547,-1490.12,0.00041643,32]
[325395035,1714809276572,-500.0,0.00041643,32]
[325395036,1714809276597,-2341.76,0.00041643,32]
[325395037,1714809276622,-2664.06,0.00041643,32]
[325395038,1714809276646,-3096.29,0.00041643,32]
[325395039,1714809276671,-508.55,0.00041643,32]
[325395040,1714809276695,-606.21,0.00041643,32]
[325395041,1714809276721,-1774.75,0.00041643,32]
[325395042,1714809276746,-500.0,0.00041643,32]
[325395043,1714809276771,-500.0,0.00041643,32]
[325395044,1714809276799,-1415.21,0.00041643,32]
[325395045,1714809276826,-1905.48,0.00041643,32]
[325395046,1714809276855,-2514.55,0.00041643,32]
[325395047,1714809276881,-500.0,0.00041643,32]
[325395048,1714809276905,-814.45,0.00041643,32]
[325395049,1714809276930,-500.0,0.00041643,32]
[325395050,1714809276954,-1341.36,0.00041643,32]
[325395051,1714809276977,-947.85,0.00041643,32]
[325395052,1714809277001,-2911.38,0.00041643,32]
[325395053,1714809277025,-577.43,0.00041643,32]
[325395054,1714809277052,-1867.93,0.00041643,32]
[325395055,1714809277076,-649.73,0.00041643,32]
[325395056,1714809277100,-518.9,0.00041643,32]
[325395057,1714809277125,-1728.0,0.00041643,32]
[325395058,1714809277148,-1753.49,0.00041643,32]
[325395059,1714809277171,-1353.91,0.00041643,32]
[325395060,1714809277194,-530.22458083,0.00041643,32]
[325395061,1714809277220,-500.0,0.00041643,32]
[325395062,1714809277243,-9770.76,0.00041643,32]
[325395063,1714809277267,-2999.84,0.00041643,32]
[325395064,1714809277291,-521.36,0.00041643,32]
[325395065,1714809277314,-850.93,0.00041643,32]
[325395066,1714809277337,-500.0,0.00041643,32]
[325395067,1714809277360,-9138.2,0.00041643,32]
[325395068,1714809277384,-519.31,0.00041643,32]
[325395069,1714809277408,-3538.81,0.00041643,32]
[325395070,1714809277431,-608.19,0.00041643,32]
[325395071,1714809277454,-500.0,0.00041643,32]
[325395072,1714809277479,-2722.56,0.00041643,32]
[325395073,1714809277502,-817.84,0.00041643,32]
[325395074,1714809277527,-500.0,0.00041643,32]
[325395075,1714809277551,-500.0,0.00041643,32]
[325395076,1714809277573,-1481.39,0.00041643,32]
[325395077,1714809277601,-6578.27,0.00041643,32]
[325395078,1714809277626,-2999.48,0.00041643,32]
[325395079,1714809277649,-4222.03,0.00041643,32]
[325395080,1714809277674,-1517.57,0.00041643,32]
[325395081,1714809277698,-3512.28,0.00041643,32]
[325395082,1714809277723,-500.0,0.00041643,32]
[325395083,1714809277748,-759.38,0.00041643,32]
[325395084,1714809277774,-1837.29,0.00041643,32]
[325395085,1714809277800,-1895.33,0.00041643,32]
[325395086,1714809277824,-500.0,0.00041643,32]
[325395087,1714809277847,-867.51,0.00041643,32]
[325395088,1714809277870,-1683.8,0.00041643,32]
[325395089,1714809277894,-500.0,0.00041643,32]
[325395090,1714809277917,-10503.64,0.00041643,32]
[325395091,1714809277940,-901.93,0.00041643,32]
[325395092,1714809277963,-710.16,0.00041643,32]
[325395093,1714809277987,-500.0,0.00041643,32]
[325395094,1714809278011,-500.0,0.00041643,32]
[325395095,1714809278036,-500.0,0.00041643,32]
[325395096,1714809278061,-3566.61,0.00041643,32]
[325395097,1714809278084,-961.74,0.00041643,32]
[325395098,1714809278108,-8952.56,0.00041643,32]
[325395099,1714809278137,-2210.98,0.00041643,32]
[325395100,1714809278161,-2257.13,0.00041643,32]
[325395101,1714809278185,-500.0,0.00041643,32]
[325395102,1714809278209,-500.0,0.00041643,32]
[325395103,1714809278233,-1248.32,0.00041643,32]
[325395104,1714809278257,-3861.87,0.00041643,32]
[325395105,1714809278280,-1135.44,0.00041643,32]
[325395106,1714809278303,-500.0,0.00041643,32]
[325395107,1714809278604,-618.78,0.00041643,32]
[325395108,1714809278630,-500.0,0.00041643,32]
[325395109,1714809278654,-25407.88,0.00041643,32]
[325395110,1714809278678,-3372.15,0.00041643,32]
[325395111,1714809278702,-551.08,0.00041643,32]
[325395112,1714809278728,-2366.26,0.00041643,32]
[325395113,1714809278752,-1607.89,0.00041643,32]
[325395114,1714809278779,-6170.27274841,0.00041643,32]
[325395115,1714809293844,-500.0,0.00030718,20]
[325395116,1714809299494,-155.0,0.00011695,2]
[325395117,1714809299518,-396.29527134,0.00011696,2]
[325395118,1714809299543,-393.0610253,0.00011697,2]
[325395119,1714809299568,-749.70504623,0.00011699,2]
[325395120,1714809299594,-192.17383712,0.00012135,2]
[325395121,1714809299618,-15017.9633,0.00012237,2]
[325395122,1714809299643,-526.95,0.00012769,2]
[325395123,1714809299666,-2361.76986435,0.000128,2]
[325395124,1714809299691,-526.95,0.00012804,2]
[325395125,1714809299715,-526.95,0.00012839,2]
[325395126,1714809299739,-251.68391057,0.00012868,2]
[325395127,1714809299762,-2098.77185,0.0001287,2]
[325395128,1714809299786,-526.95,0.00012874,2]
[325395129,1714809299810,-196.05073833,0.000129,2]
[325395130,1714809299834,-1149.59381986,0.000129,2]
[325395131,1714809299858,-1149.59381982,0.00012901,2]
[325395132,1714809299882,-1149.59381982,0.00012903,2]
[325395133,1714809299905,-1149.59381982,0.00012904,2]
[325395134,1714809299929,-1149.59381982,0.00012906,2]
[325395135,1714809299952,-1149.59381982,0.00012907,2]
[325395136,1714809299976,-1149.59381982,0.00012909,2]
[325395137,1714809300000,-526.95,0.0001291,2]
[325395138,1714809300024,-363.0477014,0.0001291,2]
[325395139,1714809300052,-1149.59381982,0.0001291,2]
[325395140,1714809300077,-250.0,0.00012914,2]
[325395141,1714809300104,-526.95,0.00012945,2]
[325395142,1714809300131,-526.95,0.0001298,2]
[325395143,1714809300367,-558.78782629,0.00012987,2]
[325395144,1714809300391,-157.13065609,0.00012998,2]
[325395145,1714809300415,-3791.56020141,0.00012998,2]
[325395146,1714809300439,-334.05587243,0.00012998,2]
[325395147,1714809300463,-1354.5632489,0.00012998,2]
[325395148,1714809300489,-14822.85856809,0.00012998,2]
[325395149,1714809300512,-2327.94533073,0.00012998,2]
[325395150,1714809300536,-360.15272987,0.00012998,2]
[325395151,1714809300559,-1755.92433775,0.00012998,2]
[325395152,1714809300588,-265.68633151,0.00012998,2]
[325395153,1714809300611,-1889.08592415,0.00012998,2]
[325395154,1714809300635,-237.17351593,0.00012998,2]
[325395155,1714809300658,-194.66538068,0.00012998,2]
[325395156,1714809300680,-162.08193255,0.00012998,2]
[325395157,1714809300704,-155.43940465,0.00012998,2]
[325395158,1714809300727,-217.023589,0.00012999,2]
[325395159,1714809300750,-202.5656331,0.00012999,2]
[325395160,1714809300773,-781.07343554,0.00012999,2]
[325395161,1714809300798,-329.48874457,0.00012999,2]
[325395162,1714809300822,-155.67724742,0.00012999,2]
[325395163,1714809300845,-156.37046121,0.00012999,2]
[325395164,1714809300869,-194.34268049,0.00012999,2]
[325395165,1714809300893,-706.86968625,0.00012999,2]
[325395166,1714809300915,-155.45749735,0.00012999,2]
[325395167,1714809300940,-263.95861987,0.00012999,2]
[325395168,1714809300963,-2360.978722,0.00012999,2]
[325395169,1714809300986,-161.02195853,0.00012999,2]
[325395170,1714809301010,-155.60406292,0.00012999,2]
[325395171,1714809301035,-155.37081136,0.00012999,2]
[325395172,1714809301066,-968.1374368,0.00012999,2]
[325395173,1714809301091,-1171.81270544,0.00012999,3]
[325395174,1714809301119,-2928186.21234388,0.00013,2]
[325395175,1714809307919,-368.56156248,0.00011694,2]
[325395176,1714809307943,-450.76641155,0.000129,2]
[325395177,1714809307970,-1121661.3397634,0.00013,2]
[325395178,1714809307995,-1275435.1159252,0.00013,2]
[325395179,1714809308020,-2321.24,0.00013,2]
[325395180,1714809308049,-1542.71170994,0.00013,2]
[325395181,1714809308077,-598220.26462743,0.00013,2]
[325395221,1714810232334,-155.0,0.00011578,2]
[325395222,1714810232346,-370.4478157,0.00011578,2]
[325395223,1714810232356,-781.62148486,0.00011579,2]
[325395224,1714810232366,-405.21355048,0.0001158,2]
[325395225,1714810232376,-192.17383712,0.00011585,2]
[325395226,1714810232385,-1076.0,0.00011686,2]
[325395227,1714810232394,-749.70504623,0.00011698,2]
[325395228,1714810232403,-4532.200503,0.00012251,2]
[325395229,1714810232413,-28868.62277419,0.00012313,2]
[325395230,1714810232424,-251.68391057,0.00012868,2]
[325395231,1714810232436,-150.0,0.00012898,2]
[325395232,1714810232447,-174.84810604,0.000129,2]
[325395233,1714810232457,-193.53761118,0.000129,2]
[325395234,1714810232467,-6250.08474101,0.000129,2]
[325395235,1714810232476,-450.76641155,0.000129,2]
[325395236,1714810232486,-196.7048822,0.000129,2]
[325395237,1714810232495,-310.14972199,0.000129,2]
[325395238,1714810232504,-1183.75368909,0.0001298,2]
[325395239,1714810232513,-558.78782629,0.00012986,2]
[325395240,1714810232522,-180.3482399,0.0001299,2]
[325395241,1714810232531,-180.3482399,0.0001299,2]
[325395242,1714810232541,-180.3482399,0.0001299,2]
[325395243,1714810232549,-173.08,0.0001299,2]
[325395244,1714810232558,-173.08,0.0001299,2]
[325395245,1714810232569,-173.08,0.0001299,2]
[325395246,1714810232577,-173.08,0.0001299,2]
[325395247,1714810232587,-173.08,0.0001299,2]
[325395248,1714810232597,-1275.82150352,0.00012998,2]
[325395249,1714810232607,-443.78973703,0.00012998,2]
[325395250,1714810232616,-161.02195853,0.00012998,2]
[325395251,1714810232626,-156.37046121,0.00012998,2]
[325395252,1714810232635,-155.45749735,0.00012998,2]
[325395253,1714810232646,-194.66538068,0.00012998,2]
[325395254,1714810232656,-329.48874457,0.00012998,2]
[325395255,1714810232665,-202.5656331,0.00012998,2]
[325395256,1714810232675,-781.07343554,0.00012998,2]
[325395257,1714810232684,-194.34268049,0.00012998,2]
[325395258,1714810232693,-265.68633151,0.00012998,2]
[325395259,1714810232702,-263.95861987,0.00012998,2]
[325395260,1714810232712,-706.86968625,0.00012998,2]
[325395261,1714810232721,-155.60406292,0.00012998,2]
[325395262,1714810232730,-334.05587243,0.00012998,2]
[325395263,1714810232740,-360.15272987,0.00012998,2]
[325395264,1714810232752,-162.08193255,0.00012998,2]
[325395265,1714810232761,-237.17351593,0.00012998,2]
[325395266,1714810232771,-155.37081136,0.00012998,2]
[325395267,1714810232780,-157.13065609,0.00012998,2]
[325395268,1714810232789,-217.023589,0.00012998,2]
[325395269,1714810232798,-155.43940465,0.00012998,2]
[325395270,1714810232808,-155.67724742,0.00012998,2]
[325395271,1714810232817,-412.71073178,0.00012998,2]
[325395272,1714810232826,-534.79759922,0.00012998,2]
[325395273,1714810232835,-156.05257033,0.00012999,2]
[325395274,1714810232844,-1812.76950426,0.00012999,2]
[325395275,1714810232854,-408161.17702739,0.00013,2]
[325395276,1714810232879,-2473992.13271217,0.00013,2]
[325395277,1714810232890,-46029.73605365,0.00013,2]
[325395278,1714810232902,-500.0,0.00013,2]
[325395279,1714810232970,-13226.01023244,0.00013,2]
[325395280,1714810233047,-173.08,0.0001299,2]